{"text_format":"1","workbook":"xlsx","n_sheets":4,"sheets":["Данные","1рейс улетающие","2рейс улетающие","Разделение"],"not_rendered":{"charts":0,"images":0,"macros":0,"external_links":3,"defined_names":0,"comments":1,"pivot_tables":0},"unopened":[],"bounds":{"document_bytes":16777216,"sheet_cells":100000,"rows_first":2000,"rows_last":500,"rows_between":2000,"halvings":0,"cell_chars":16384,"cell_head_chars":4096},"cells_cut":0,"cells_raw":0,"read":"whole","date_system":"1900"}

{"sheet":"Данные","index":0,"n_rows":31,"n_cols":13,"rows_kept":31,"cut":false,"hidden":false,"merged":[]}
[null,"прилетающие",null,null,null,null,null,"улетающие"]
["N","Name","Position","CO","Code",null,"N","Name","Position","Co","Code"]
[1,"Kazimov, Khidiz ","AC Technician","Bakkond","2f",null,1,"Shnyagin, Maksim ","TRS","Weatherford","1f"]
[2,"Mamedov, Shamistan ","ASST DRILLER.","CDC","2f",null,2,"Shahmuradov, Agshin ","MATERIALSMAN","CDC","1f"]
[3,"Hasanov, Ruslan ","ASST ET.","CDC","2f",null,3,"Reed, Mark ","WELLSITE LEADER.","BP","1f"]
[4,"Babayev, Yusif ","ASST. RIG MANAGER.","CDC","2f",null,4,"Provan, Martin ","WELLSITE LEADER.","BP","1f"]
[5,"Mirzoyev, Elkhan ","CUTTING TECH","Swaco","1f",null,5,"Mustafayev, Anvar ","TRS","Weatherford","1f"]
[6,"Tahmazov, Riyad ","CUTTING TECH","Swaco","1f",null,6,"Musayev, Emin ","ROV","Dalgij","1f"]
[7,"Bakirov, Shahin ","DECKPUSHER","CDC","2f",null,7,"Mongi, Robert ","TRS","Weatherford","1f",null,"максимально 1 вертолет "]
[8,"Islamov, Rustam ","DMC","BP","1f",null,8,"Mehdiyev, Kamran ","SERVICE TECHNICIAN","OneSubsea","1f",null,"может взять 18 человек"]
[9,"Gahramanov, Gabil ","DRILLER","CDC","2f",null,9,"Mehdiyev, Elnur ","ENGINEER.","Vetco","1f",null,"в данном случае"]
[10,"Salayev, Mirzaaga ","DRILLER","CDC","2f",null,10,"Mansimov, Rasim ","DRILLER","CDC","1f",null,"10/14 первый рейс"]
[11,"Aliyarov, Emin ","GEOLOGIST","BP","1f",null,11,"Manafov, Abutalib ","SUB SEA ENGINEER","CDC","1f",null,"16/15 второй рейс"]
[12,"Bakhtiyev., Rashad ","Geologist Trainee","BP","1f",null,12,"Mammadov, Anar ","ROUGHNECK","CDC","1f"]
[13,"Aghayev, Asadulla ","MEDIC","ISOS","1f",null,13,"Mamedov, Etibar ","TOURPUSHER","CDC","2f"]
[14,"Mammadov, Gabil ","MUD ENGINEER.","MI","1f",null,14,"Kosayev, Ali ","ASST ET.","CDC","2f"]
[15,"Nusalov, Emil ","MUD ENGINEER.","MI","1f",null,15,"Kalmikov, Dmitriy ","ROV","Dalgij","2f"]
[16,"Orujov, Oruj ","OPERATOR","Swaco","1f",null,16,"Jafarov, Sabiraga ","DECKPUSHER","CDC","2f"]
[17,"Askerov, Elvin ","ROUGHNECK","CDC","2f",null,17,"Ismailov, Rufat ","ROUGHNECK","CDC","1f"]
[18,"Kiselev, Igor ","ROUGHNECK","CDC","2f",null,18,"Islamov, Huseyn ","DRILLER","CDC","1f"]
[19,"Nazarov, Israfil ","ROUGHNECK","CDC","2f",null,19,"Humbatov, Eldar ","ROV","Dalgij","2f"]
[20,"Adigezalov, Sadikh ","ROUSTABOUT","CDC","2f",null,20,"Heydar-zade, Anar ","Trainee Subsea","BP","2f"]
[21,"Bakirov, Rauf ","STOREKEEPER","CDC","2f",null,21,"Hasanov, Ruslan ","Tools","OneSubsea","2f"]
[22,"Khalafov, Namig ","STOREKEEPER","CDC","2f",null,22,"Glass, Mike ","Subsea Engineer","CDC","2f"]
[23,"Hasanov, Orkhan ","Subsea Engineer","CDC","2f",null,23,"Garayev, Farid ","ENGINEER.","Vetco","2f"]
[24,"Pashayev, Sardar ","TOURPUSHER","CDC","2f",null,24,"Gadirov, Kamran ","TRS","Weatherford","2f"]
[25,"Karamov, Mohammad ","Trainee Drilling","CDC","2f",null,25,"Babayev, Ramin ","MUD ENGINEER.","MI","2f"]
[26,"Taylor, Michael ","WELLSITE LEADER.","BP","1f",null,26,"Asadov, Heydar ","ASST DRILLER.","CDC","2f"]
[null,null,null,null,null,null,27,"Asadov, Adnan ","ROUGHNECK","CDC","2f"]
[null,null,null,null,null,null,28,"Aliyev, Emin ","STOREKEEPER","CDC","2f"]
[null,null,null,null,null,null,29,"Abizade, Elvin ","HELPER","Dowell","2f"]

{"sheet":"1рейс улетающие","index":1,"n_rows":25,"n_cols":6,"rows_kept":25,"cut":false,"hidden":false,"merged":[[1,4,1,5],[24,0,24,5]]}
[null,"FLIGHT MANIFEST","DG1A"]
[null,"S-92","DDGG-ZABR",null,{"$f":"TODAY()","v":"2014-08-20"}]
[]
["N","Name ","Company ","Q-TY","BAG","PAX"]
[{"$f":"[1]Paste!O2","v":1}]
[{"$f":"[1]Paste!O3","v":2}]
[{"$f":"[1]Paste!O4","v":3}]
[{"$f":"[1]Paste!O5","v":4}]
[{"$f":"[1]Paste!O6","v":5}]
[{"$f":"[1]Paste!O7","v":6}]
[{"$f":"[1]Paste!O8","v":7}]
[{"$f":"[1]Paste!O9","v":8}]
[{"$f":"[1]Paste!O10","v":9}]
[{"$f":"[1]Paste!O11","v":10}]
[{"$f":"[1]Paste!O12","v":11}]
[{"$f":"[1]Paste!O13","v":12}]
[{"$f":"[1]Paste!O14","v":13}]
[{"$f":"[1]Paste!O15","v":14}]
[{"$f":"[1]Paste!O16","v":15}]
[{"$f":"[1]Paste!O17","v":16}]
[{"$f":"[1]Paste!O18","v":17}]
[{"$f":"[1]Paste!O19","v":18}]
[null,"TOTAL","KG",{"$f":"SUM(D5:D22)","v":0},{"$f":"SUM(E5:E22)","v":0},{"$f":"SUM(F5:F22)","v":0}]
[]
["CARGO"]

{"sheet":"2рейс улетающие","index":2,"n_rows":22,"n_cols":6,"rows_kept":22,"cut":false,"hidden":false,"merged":[[22,0,22,1]]}
[null,"FLIGHT MANIFEST","DG2A"]
[null,"S-92","DDGG-ZABR",null,null,{"$f":"TODAY()","v":"2014-08-20"}]
[]
["N","Name ","Company ","Q-TY","BAG","PAX"]
[1]
[2]
[3]
[4]
[5]
[6]
[7]
[8]
[9]
[10]
[11]
[12]
[13]
[14]
[15]
[16]
[17]
[18]

{"sheet":"Разделение","index":3,"n_rows":41,"n_cols":11,"rows_kept":41,"cut":false,"hidden":false,"merged":[[0,2,0,4],[5,0,22,0],[23,0,40,0],[5,6,22,6],[23,6,40,6]]}
[null,null,{"$f":"[2]AVLOG!C1","v":"2014-08-12"},null,null,null,null,null,"Hellicopters Split",null,{"$f":"[2]AVLOG!K1","v":"00:00:00"}]
[]
[null,null,"To",null,null,null,null,null,"From"]
[]
[null,"N","Name","Van Number","Position","Company",null,"N","Name","Position","Company"]
["1рейс",1,null,null,null,null,"1рейс",1]
[null,2,null,null,null,null,null,2]
[null,3,null,null,null,null,null,3]
[null,4,null,null,null,null,null,4]
[null,5,null,null,null,null,null,5]
[null,6,null,null,null,null,null,6]
[null,7,null,null,null,null,null,7]
[null,8,null,null,null,null,null,8]
[null,9,null,null,null,null,null,9]
[null,10,null,null,null,null,null,10]
[null,11,null,null,null,null,null,11]
[null,12,null,null,null,null,null,12]
[null,13,null,null,null,null,null,13]
[null,14,null,null,null,null,null,14]
[null,15,null,null,null,null,null,15]
[null,16,null,null,null,null,null,16]
[null,17,null,null,null,null,null,17]
[null,18,null,null,null,null,null,18]
["2рейс",1,null,null,null,null,"2рейс",1]
[null,2,null,null,null,null,null,2]
[null,3,null,null,null,null,null,3]
[null,4,null,null,null,null,null,4]
[null,5,null,null,null,null,null,5]
[null,6,null,null,null,null,null,6]
[null,7,null,null,null,null,null,7]
[null,8,null,null,null,null,null,8]
[null,9,null,null,null,null,null,9]
[null,10,null,null,null,null,null,10]
[null,11,null,null,null,null,null,11]
[null,12,null,null,null,null,null,12]
[null,13,null,null,null,null,null,13]
[null,14,null,null,null,null,null,14]
[null,15,null,null,null,null,null,15]
[null,16,null,null,null,null,null,16]
[null,17,null,null,null,null,null,17]
[null,18,null,null,null,null,null,18,{"$f":"'[3]Paste Data'!R38","v":0},{"$f":"PROPER('[3]Paste Data'!S38)","v":""},{"$f":"'[3]Paste Data'!T38","v":0}]